Workbook

Sheet Personal Services
C1: 2010 | D1: 2011 | E1: 2012 | F1: 2013 | G1: 2014 | H1: 2015 | I1: 2016 | J1: 2017 | K1: 2018 | L1: 2019 | M1: Total
A2: 18323900 | B2: TITLE 1 AIR TOOLS | C2: -6.252776075e-13 | D2: 35135.15 | E2: 33510.33 | G2: 55462.24 | H2: 95842.59 | I2: =78270.15+1814.28 -> 80084.43 | J2: 95689.22 | K2: 146593.48 | L2: 144982.19 | M2: =SUM(C2:L2) -> 687299.63
A3: 18325900 | B3: TITLE V AIR TOOLS | C3: 130955.83 | D3: 86603.15 | E3: 117594.18 | F3: 216316.32 | G3: 73350.75 | H3: 94291.04 | I3: 84415.22 | J3: 92180.92 | K3: 143329.82 | L3: 138087.44 | M3: =SUM(C3:L3) -> 1177124.67
A4: 18335555 | B4: TITLE V PERMIT ADMIN | C4: 979578.92 | D4: 898937.68 | E4: 956944.72 | F4: 1005261.83 | G4: 1248833.47 | H4: 1134277.91 | I4: 1466848.81 | J4: 1389657 | K4: 1237061.79 | L4: 1343189.78 | M4: 11660591.91
A5: 18335666 | B5: TITLE I PERMIT ADMIN | C5: 633481.16 | D5: 694995.65 | E5: 583164.54 | F5: 688078.86 | G5: 693420.36 | H5: 667646.63 | I5: 675129 | J5: 606861.84 | K5: 633257.29 | L5: 605323.11 | M5: 6481358.44
A6: 18335777 | B6: TITLE V EMISSION | C6: 1218909.22 | D6: 1357022.44 | E6: 1467876.92 | F6: 1682700.7 | G6: 1600324.16 | H6: 1587073.8 | I6: 1520389.8 | J6: 1536985.51 | K6: 1687027.02 | L6: 831206.67 | M6: 14489516.24
A7: 18335888 | B7: TITLE I EMISSION | C7: 463885.12 | D7: 410254.57 | E7: 445465.52 | F7: 539316.53 | G7: 596563.45 | H7: 508056.1 | I7: 653894.44 | J7: 506238.22 | K7: 562336.6 | L7: 1028716.85 | M7: 5714727.4
C8: =SUM(C2:C7) -> 3426810.25 | D8: =SUM(D2:D7) -> 3482948.64 | E8: 3604556.21 | F8: 4131674.24 | G8: 4267954.43 | H8: 4087188.07 | I8: 4480761.7 | J8: 4227612.71 | K8: 4409606 | L8: 4091506.04 | M8: 40210618.29

Sheet Non-Personal Services
C1: 2010 | D1: 2011 | E1: 2012 | F1: 2013 | G1: 2014 | H1: 2015 | I1: 2016 | J1: 2017 | K1: 2018 | L1: 2019 | M1: Total
A2: 18323900 | B2: TITLE 1 AIR TOOLS | E2: 578.46 | F2: 0 | M2: =SUM(C2:L2) -> 578.46
A3: 18325900 | B3: TITLE V AIR TOOLS | C3: 5160.04 | D3: 5557.99 | E3: 7083.93 | F3: 1374.19 | M3: =SUM(C3:L3) -> 19176.15
A4: 18335555 | B4: TITLE V PERMIT ADMIN | C4: 595813.64 | D4: 388631.05 | E4: 310319.61 | F4: 249503.43 | G4: 158428.94 | H4: 107307.94 | I4: 105837.17 | J4: 87818.63 | K4: 51291.38 | L4: 65356.52 | M4: 2120308.31
A5: 18335666 | B5: TITLE I PERMIT ADMIN | C5: 171893 | D5: 255007.3 | E5: 93537.65 | F5: 150316.15 | G5: 133241.92 | H5: 26402.33 | I5: 83271.2 | J5: 12663.52 | K5: 10440.09 | L5: 12382.49 | M5: 949155.65
A6: 18335777 | B6: TITLE V EMISSION | C6: 215923.65 | D6: 221421.44 | E6: 272317.12 | F6: 266865.19 | G6: 174733.33 | H6: 138075.86 | I6: 150413.27 | J6: 102572.77 | K6: 120676.91 | L6: 125241.94 | M6: 1788241.48
A7: 18335888 | B7: TITLE I EMISSION | C7: 63368.49 | D7: 68180.09 | E7: 63878.12 | F7: 131639.58 | G7: 58785.8 | H7: 51403.44 | I7: 65066.94 | J7: 58071.94 | K7: 74833.8 | L7: 87350.76 | M7: 722578.96
C8: =SUM(C2:C7) -> 1052158.82 | D8: 938797.87 | E8: 747714.89 | F8: 799698.54 | G8: 525189.99 | H8: 323189.57 | I8: 404588.58 | J8: 261126.86 | K8: 257242.18 | L8: =SUM(L2:L7) -> 290331.71 | M8: =SUM(M1:M7) -> 5600039.01

Sheet Summary with CPI
A1: Total Permit Costs | B1: 2010 | C1: 2011 | D1: 2012 | E1: 2013 | F1: 2014 | G1: 2015 | H1: 2016 | I1: 2017 | J1: 2018 | K1: 2019 | L1: Total
A2: Personal Services | B2: ='Personal Services'!C8 -> 3426810.25 | C2: ='Personal Services'!D8 -> 3482948.64 | D2: ='Personal Services'!E8 -> 3604556.21 | E2: ='Personal Services'!F8 -> 4131674.24 | F2: ='Personal Services'!G8 -> 4267954.43 | G2: ='Personal Services'!H8 -> 4087188.07 | H2: ='Personal Services'!I8 -> 4480761.7 | I2: ='Personal Services'!J8 -> 4227612.71 | J2: ='Personal Services'!K8 -> 4409606 | K2: ='Personal Services'!L8 -> 4091506.04 | L2: =SUM(B2:K2) -> 40210618.29
A3: Non Personal Services | B3: ='Non-Personal Services'!C8 -> 1052158.82 | C3: ='Non-Personal Services'!D8 -> 938797.87 | D3: ='Non-Personal Services'!E8 -> 747714.89 | E3: ='Non-Personal Services'!F8 -> 799698.54 | F3: ='Non-Personal Services'!G8 -> 525189.99 | G3: ='Non-Personal Services'!H8 -> 323189.57 | H3: ='Non-Personal Services'!I8 -> 404588.58 | I3: ='Non-Personal Services'!J8 -> 261126.86 | J3: ='Non-Personal Services'!K8 -> 257242.18 | K3: ='Non-Personal Services'!L8 -> 290331.71 | L3: =SUM(B3:K3) -> 5600039.01
A5: CPI Factor | B5: 1.19 | C5: 1.17 | D5: 1.14 | E5: 1.12 | F5: 1.1 | G5: 1.1 | H5: 1.09 | I5: 1.06 | J5: 1.04 | K5: 1.02
A6: FY 2020 Equivalent Personal Services | B6: =B2*B5 -> 4077904.197 | C6: =C2*C5 -> 4075049.909 | D6: 4109194.079 | E6: 4627475.149 | F6: 4694749.873 | G6: 4495906.877 | H6: 4884030.253 | I6: 4481269.473 | J6: 4585990.24 | K6: 4173336.161 | L6: =SUM(B6:K6) -> 44204906.21
A7: FY2020 Equivalent Non Personal Services | B7: =B3*B5 -> 1252068.996 | C7: =C3*C5 -> 1098393.508 | D7: 852394.9746 | E7: 895662.3648 | F7: 577708.989 | G7: 355508.527 | H7: 441001.5522 | I7: 276794.4716 | J7: 267531.8672 | K7: 296138.3442 | L7: =SUM(B7:K7) -> 6313203.594
B8: =SUM(B6:B7) -> 5329973.193 | C8: =SUM(C6:C7) -> 5173443.417 | D8: 4961589.054 | E8: 5523137.514 | F8: 5272458.862 | G8: 4851415.404 | H8: 5325031.805 | I8: 4758063.944 | J8: 4853522.107 | K8: 4469474.505 | L8: 50518109.81
A11: Less: Costs Included in Permit Flat Fees and Time and Materials Charges at FY2020 Equivalent
A12: Personal Services Included in Fees and Charges | B12: 1601557.89 | C12: 1555165.03 | D12: 1436419.17 | E12: 1512326.89 | F12: 1682003.07 | G12: 1591300.5 | H12: 1860601.87 | I12: 1687400.5 | J12: 1574599.98 | K12: 1623519.82 | L12: =SUM(B12:K12) -> 16124894.72
A13: Non Personal Services Included in Fees and Charges | B13: 848603.91 | C13: 518640.77 | D13: 447830.12 | E13: 447350.45 | F13: 391492.04 | G13: 163799.02 | H13: 183357.65 | I13: 113309.61 | J13: 65007.81 | K13: 59362.73 | L13: =SUM(B13:K13) -> 3238754.11
A14: Total Costs Included in Flat Fees and Time and Materials Charges | B14: =SUM(B12:B13) -> 2450161.8 | C14: 2073805.8 | D14: 1884249.29 | E14: 1959677.34 | F14: 2073495.11 | G14: 1755099.52 | H14: 2043959.52 | I14: 1800710.11 | J14: 1639607.79 | K14: 1682882.55 | L14: =SUM(L12:L13) -> 19363648.83
A17: Equals Costs to Include in Emission's Fees | B17: =B8-B14 -> 2879811.393 | C17: 3099637.617 | D17: 3077339.764 | E17: 3563460.174 | F17: 3198963.752 | G17: 3096315.884 | H17: 3281072.285 | I17: 2957353.834 | J17: 3213914.317 | K17: 2786591.955 | L17: =SUM(B17:K17) -> 31154460.98
A19: Add: Administrative RDU Use of CAPF | L19: 493667.73
A21: Single Year Cost at FY2020 Levels | L21: =SUM(L17/10)+L19 -> 3609113.828
A23: Add: Monitoring | B23: =SUM(913436.19+65421.59) -> 978857.78 | C23: =SUM(605244.27+376404.64) -> 981648.91 | D23: 776466.49 | E23: 872356.45 | F23: =1099519.39+5346.53 -> 1104865.92 | G23: =913726.36+1016.54 -> 914742.9 | H23: 1380851.61 | I23: 1388840.97 | J23: 1355115.36 | K23: 1474368.65
A24: FY2020 Cost Level | B24: =B23*B5 -> 1164840.758 | C24: 1148529.225 | D24: 885171.7986 | E24: 977039.224 | F24: 1215352.512 | G24: 1006217.19 | H24: 1505128.255 | I24: 1472171.428 | J24: 1409319.974 | K24: 1503856.023 | L24: =SUM(B24:K24)/10 -> 1228762.639 | M24: Single Year Average
A26: Add: Non-Point Personal Services (Broad definition, averaged FY18 and FY19 analysis)
A27: FY2020 Cost Level | B27: =B26*B6 -> 0 | C27: 0 | D27: 0 | E27: 0 | F27: 0 | G27: 0 | H27: =H26*H3 -> 0 | I27: =I26*I3 -> 0 | J27: =J26*J5 -> 0 | K27: =K26*K5 -> 0 | L27: =SUM(H27:K27)/2 -> 0 | M27: Single Year Average
A29: Add: Non-Point Non Personal Services (Contractual only)
A30: FY2020 Cost Level | B30: =B29*B8 -> 0 | C30: 0 | D30: 0 | E30: 0 | F30: 0 | G30: 0 | H30: =H29*H5 -> 0 | I30: =I29*I5 -> 0 | J30: =J29*J5 -> 0 | K30: =K29*K5 -> 0 | L30: =SUM(H30:K30)/4 -> 0 | M30: Single Year Average
A32: Add: Unsustainable Cuts | L32: =SUM(150000+24000) -> 174000
A34: Add: Pension Liability Change | L34: =297700+14900 -> 312600 | M34: Pension Liability Change
L36: =SUM(B36:K36)/10 -> 0
A38: FY2020 Equivalent Costs | L38: =SUM(L21:L36) -> 5324476.466
A40: EMIS TV and TI - only | K40: FY2020 Actual Emiss | L40: 79534 | M40: =L40-L47 -> 75704
A41: Have to look at other EMIS separately - they were set back when original fees established, and never reset
M42: With no additions
K43: Title V Only Rate | L43: =SUM(L38/SUM((L47*N44+SUM(L50*N44)+L50))) -> 54.9798534 | N43: Title I = (.21/.79)Title V
H44: =3200000*I44 -> 729406.2864 | I44: =SUM(9.79/42.95) -> 0.2279394645 | K44: Title I Only Rate | L44: =L43*N44 -> 14.61364503 | N44: =ROUND(SUM(0.21/0.79),4) -> 0.2658
K45: Combo Rate | L45: =SUM(L43+L44) -> 69.59349844
K47: FY20 Title I Only Units | L47: 3830 | M47: =SUM(L47/L40) -> 0.04815550582
K48: FY20 Title I Only Collections | L48: =L44*L47 -> 55970.26048
K50: FY20 Title V Units | L50: 75704
K52: FY20 Title V Portion Combo | L52: =SUM(L43)*L50 -> 4162194.822
K53: FY20 Title I Portion Combo | L53: =L44*L50 -> 1106311.384
K56: Total Title V Collections | L56: =SUM(L52) -> 4162194.822 | M56: =L56/L58 -> 0.7817096852
K57: Total Title I Collections | L57: =SUM(L53+L48) -> 1162281.644 | M57: =L57/L58 -> 0.2182903148
L58: =SUM(L56+L57) -> 5324476.466
A60: Forecast | B60: 2021 | C60: 2022 | D60: 2023 | E60: 2024
A61: Emissions (from Regression Analysis) | B61: 75560 | C61: 72110 | D61: 68661 | E61: 61763
A62: Cost (with annual CPI factor of 1.02) | B62: =L38*1.02 -> 5430965.996 | C62: =B62*1.02 -> 5539585.316 | D62: =C62*1.02 -> 5650377.022 | E62: 5763384.562
A65: Title V Only Rate | B65: =SUM(B62/SUM((B69*$N$44+SUM(B72*$N$44)+B72))) -> 59.0310482 | C65: =SUM(C62/SUM((C69*$N$44+SUM(C72*$N$44)+C72))) -> 63.09241051 | D65: =SUM(D62/SUM((D69*$N$44+SUM(D72*$N$44)+D72))) -> 67.58692119 | E65: =SUM(E62/SUM((E69*$N$44+SUM(E72*$N$44)+E72))) -> 76.63807309 | F65: Average | G65: =SUM(B65:E65)/4 -> 66.58711325
A66: Title I Only Rate | B66: =B65*$N$44 -> 15.69045261 | C66: =C65*$N$44 -> 16.76996271 | D66: =D65*$N$44 -> 17.96460365 | E66: =E65*$N$44 -> 20.37039983 | F66: Average | G66: =SUM(B66:E66)/4 -> 17.6988547
A67: Combo Rate - Paid by Title V Facilities | B67: =SUM(B65+B66) -> 74.72150081 | C67: =SUM(C65+C66) -> 79.86237322 | D67: =SUM(D65+D66) -> 85.55152485 | E67: =SUM(E65+E66) -> 97.00847291 | F67: Average | G67: 84.28596795
A69: Annual Title I Only Units | B69: =B61*0.0482 -> 3641.992 | C69: =C61*0.0482 -> 3475.702 | D69: 3309.4602 | E69: 2976.9766
A70: Annual Title I Only Collections | B70: =B66*B69 -> 57144.50288 | C70: =C66*C69 -> 58287.39294 | D70: =D66*D69 -> 59453.1408 | E70: =E66*E69 -> 60642.20362 | G70: =SUM(B70:E70)/4 -> 58881.81006
A72: Annual Title V Only Units | B72: =B61-B69 -> 71918.008 | C72: =C61-C69 -> 68634.298 | D72: =D61-D69 -> 65351.5398 | E72: =E61-E69 -> 58786.0234
A74: Annual Title V Portion of Combo | B74: =SUM(B67)*B72 -> 5373821.493 | C74: =SUM(C67)*C72 -> 5481297.923 | D74: 5590923.881 | E74: 5702742.359 | G74: =SUM(B74:E74)/4 -> 5537196.414
G76: =SUM(G70:G74) -> 5596078.224
A78: Total Title V Collections | B78: =SUM(B74) -> 5373821.493 | C78: =SUM(C74) -> 5481297.923 | D78: =SUM(D74) -> 5590923.881 | E78: =SUM(E74) -> 5702742.359 | F78: Average | G78: =SUM(B78:E78)/4 -> 5537196.414
A79: Total Title I Collections | B79: =SUM(B75+B70) -> 57144.50288 | C79: =SUM(C75+C70) -> 58287.39294 | D79: =SUM(D75+D70) -> 59453.1408 | E79: =SUM(E75+E70) -> 60642.20362 | F79: Average | G79: =SUM(B79:E79)/4 -> 58881.81006
B80: =SUM(B78+B79) -> 5430965.996 | C80: =SUM(C78+C79) -> 5539585.316 | D80: =SUM(D78+D79) -> 5650377.022 | E80: =SUM(E78+E79) -> 5763384.562 | F80: Average Total | G80: =SUM(G78+G79) -> 5596078.224
